bitfinex/quotes_BTCUSD_20240911
["timestamp","ask_amount","ask_price","bid_price","bid_amount"]
[1726057243523,0.000817,56998.0,56997.0,0.1384]
[1726057244291,0.70481173,56998.0,56992.0,0.001636]
[1726057244534,0.76434626,56993.0,56992.0,0.001636]
[1726057244777,1.37037113,56993.0,56992.0,0.001636]
[1726057245010,1.44777356,56993.0,56992.0,0.001636]
[1726057245233,1.62394311,56993.0,56992.0,0.001636]
[1726057245457,1.80143722,56993.0,56992.0,0.001636]
[1726057245906,1.96143722,56993.0,56992.0,0.001636]
[1726057246621,1.96143722,56993.0,56992.0,0.002636]
[1726057247050,1.96143722,56993.0,56992.0,0.003636]
[1726057247263,1.96143722,56993.0,56992.0,0.002636]
[1726057247482,2.13486311,56993.0,56992.0,0.002636]
[1726057247696,1.78394311,56993.0,56992.0,0.00020275]
[1726057247929,0.618389,56992.0,56991.0,0.001636]
[1726057248160,1.82891185,56992.0,56991.0,0.001636]
[1726057248386,2.45724261,56992.0,56991.0,0.001636]
[1726057248613,1.17537326,56986.0,56985.0,0.001636]
[1726057248843,1.95880056,56986.0,56985.0,0.001636]
[1726057249066,2.13253293,56986.0,56985.0,0.001636]
[1726057250197,2.48349593,56986.0,56985.0,0.001636]
[1726057250427,0.41147526,56977.0,56976.0,0.02]
[1726057250670,1.49016922,56977.0,56976.0,0.02]
[1726057250883,1.71624738,56977.0,56976.0,0.02]
[1726057251355,2.16726538,56977.0,56976.0,0.02]
[1726057251576,2.1721583,56977.0,56976.0,0.02]
[1726057252035,2.22726052,56977.0,56976.0,0.02]
[1726057252489,2.22726052,56977.0,56975.0,0.0003921]
[1726057252490,1.318584,56976.0,56975.0,0.0003921]
[1726057252709,1.318584,56976.0,56964.0,0.0024756]
[1726057252710,0.82253926,56972.0,56964.0,0.0024756]
[1726057252949,1.74649738,56972.0,56964.0,0.0024756]
[1726057253226,1.86158804,56972.0,56964.0,0.0024756]
[1726057253444,2.1295975,56972.0,56964.0,0.0024756]
[1726057253685,1.88236027,56972.0,56964.0,0.0024756]
[1726057254365,1.88636027,56972.0,56971.0,0.002634]
[1726057254593,1.88236027,56972.0,56971.0,0.001634]
[1726057254822,1.88236027,56972.0,56964.0,0.0024756]
[1726057254823,0.96973,56965.0,56964.0,0.0024756]
[1726057255043,2.0071317,56965.0,56964.0,0.0024756]
[1726057255276,1.44522958,56965.0,56964.0,0.0024756]
[1726057255510,1.65119584,56965.0,56964.0,0.0024756]
[1726057255740,1.55321629,56965.0,56964.0,0.0024756]
[1726057255954,1.72938584,56965.0,56964.0,0.0024756]
[1726057256407,2.08047784,56965.0,56964.0,0.0024756]
[1726057256641,2.00189799,56965.0,56964.0,0.0024756]
[1726057256881,2.00189799,56965.0,56964.0,0.0034756]
[1726057256882,2.09147784,56965.0,56964.0,0.0034756]
[1726057257402,2.09547784,56965.0,56964.0,0.0044756]
[1726057257625,2.01689799,56965.0,56964.0,0.0044756]
[1726057257844,1.52689626,56960.0,56948.0,0.0794]
[1726057258071,1.90432755,56960.0,56948.0,0.0794]
[1726057258504,1.87812496,56960.0,56948.0,0.0794]
[1726057258935,1.87812496,56960.0,56945.0,0.00021139]
[1726057259161,1.88812496,56960.0,56959.0,0.002634]
[1726057259377,2.01200599,56960.0,56959.0,0.002634]
[1726057259611,2.00200599,56960.0,56959.0,0.001634]
[1726057259849,0.618749,56953.0,56945.0,0.00021139]
[1726057260099,1.02365544,56953.0,56945.0,0.00021139]
[1726057260335,0.47342042,56953.0,56945.0,0.00021139]
[1726057260567,0.67938668,56953.0,56945.0,0.00021139]
[1726057260798,0.70938668,56953.0,56945.0,0.00021139]
[1726057261032,0.70938668,56953.0,56952.0,0.0051096]
[1726057261033,0.44742042,56953.0,56952.0,0.0051096]
[1726057261262,0.30994018,56953.0,56952.0,0.0051096]
[1726057262159,0.48552318,56953.0,56952.0,0.0051096]
[1726057262419,0.004,56953.0,56952.0,0.0836096]
[1726057262653,0.016,56953.0,56952.0,0.0846096]
[1726057262882,0.0557144,56953.0,56952.0,0.0846096]
[1726057263104,0.004,56953.0,56952.0,0.1438096]
[1726057263801,0.175562,56960.0,56952.0,0.1428096]
[1726057264027,0.17594018,56959.0,56952.0,0.1428096]
[1726057264252,0.005,56953.0,56952.0,0.1438096]
[1726057264482,0.011,56953.0,56952.0,0.1438096]
[1726057265000,0.005,56953.0,56952.0,0.1438096]
[1726057265452,0.005,56953.0,56952.0,0.1448096]
[1726057265893,0.005,56953.0,56952.0,0.1438096]
[1726057266335,0.016,56953.0,56952.0,0.1448096]
[1726057266789,0.03819663,56953.0,56952.0,0.1448096]
[1726057268383,0.016,56953.0,56952.0,0.1448096]
[1726057270741,0.016,56953.0,56952.0,0.32074978]
[1726057270961,0.016,56953.0,56952.0,0.1448096]
[1726057271664,0.011,56953.0,56952.0,0.1438096]
[1726057271901,0.74368918,56953.0,56952.0,0.0051096]
[1726057272135,0.85065472,56953.0,56952.0,0.0061096]
[1726057272382,0.84665472,56953.0,56952.0,0.0051096]
[1726057272619,0.85065472,56953.0,56952.0,0.0061096]
[1726057272859,1.20182072,56953.0,56952.0,0.0061096]
[1726057274467,1.05462098,56953.0,56952.0,0.0061096]
[1726057274685,0.49787198,56953.0,56952.0,0.0061096]
[1726057274922,0.29190572,56953.0,56952.0,0.0061096]
[1726057275147,0.015,56953.0,56952.0,0.0061096]
[1726057275414,0.015,56953.0,56952.0,0.1496096]
[1726057276343,0.004,56953.0,56952.0,0.1486096]
[1726057277500,0.004,56953.0,56952.0,0.1476096]
[1726057277721,0.20596626,56966.0,56953.0,0.1378]
[1726057277971,0.20596626,56966.0,56954.0,0.0763]
[1726057278414,0.20596626,56966.0,56955.0,0.0632]
[1726057279105,0.004818,56959.0,56955.0,0.0632]
[1726057279343,0.009818,56959.0,56955.0,0.0632]
[1726057280739,0.004818,56959.0,56956.0,0.0762]
[1726057280968,0.004818,56959.0,56958.0,0.0762]
[1726057281196,0.013818,56959.0,56958.0,0.0762]
[1726057281654,0.004818,56959.0,56958.0,0.0762]
[1726057281894,0.004818,56959.0,56958.0,0.142]
[1726057282130,0.009818,56959.0,56958.0,0.142]
[1726057282364,0.013818,56959.0,56958.0,0.143]
[1726057282593,0.004818,56959.0,56958.0,0.143]
[1726057282894,0.011818,56959.0,56958.0,0.144]
[1726057283832,0.007818,56959.0,56958.0,0.143]
[1726057284077,0.011818,56959.0,56958.0,0.143]
[1726057284316,0.004818,56959.0,56958.0,0.142]
[1726057284542,0.006818,56959.0,56958.0,0.142]
[1726057300288,0.004818,56959.0,56958.0,0.142]
[1726057300747,0.002818,56959.0,56958.0,0.142]
[1726057301204,0.004818,56959.0,56958.0,0.142]
[1726057301468,0.004818,56959.0,56958.0,0.145]
[1726057301712,0.004818,56959.0,56958.0,0.146]
[1726057302910,0.004818,56959.0,56958.0,0.147636]
[1726057303881,0.004818,56959.0,56958.0,0.32357618]
[1726057304111,0.5800655,56979.0,56961.0,0.1401]
[1726057304365,0.52782518,56979.0,56971.0,0.20596626]
[1726057304603,0.52782518,56979.0,56972.0,0.1425]
[1726057304852,0.05278252,56979.0,56972.0,0.1425]
[1726057305083,0.05224032,56988.0,56972.0,0.1425]
[1726057305311,0.17594018,56987.0,56972.0,0.1425]
[1726057306053,0.002,56979.0,56972.0,0.1425]
[1726057306725,0.009,56979.0,56972.0,0.11267101]
[1726057306976,0.21496626,56979.0,56972.0,0.0761]
[1726057307210,0.002,56975.0,56967.0,0.0804]
[1726057307475,0.38190644,56975.0,56967.0,0.0804]
[1726057307700,0.08717464,56973.0,56959.0,0.0808]
[1726057307918,0.24121441,56972.0,56959.0,0.0808]
[1726057308146,0.29368905,56972.0,56959.0,0.0808]
[1726057308856,0.29368905,56972.0,56967.0,0.001]
[1726057309090,0.24121441,56972.0,56959.0,0.0808]
[1726057309319,0.29368905,56972.0,56959.0,0.0808]
[1726057309547,0.07200166,56971.0,56960.0,0.0622]
[1726057309803,0.1244763,56971.0,56960.0,0.0622]
[1726057310269,0.07200166,56971.0,56960.0,0.0622]
[1726057311000,0.07400166,56971.0,56960.0,0.0622]
[1726057311674,0.002,56971.0,56960.0,0.0622]
[1726057314045,0.05247464,56970.0,56960.0,0.0622]
[1726057314303,0.05247464,56970.0,56960.0,0.063836]
[1726057315221,0.05250821,56970.0,56960.0,0.063836]
[1726057315668,0.05250821,56969.0,56960.0,0.063836]
[1726057315899,0.04142271,56968.0,56960.0,0.063836]
[1726057316609,0.04142271,56968.0,56961.0,0.078]
[1726057317796,0.05250821,56971.0,56962.0,0.0633]
[1726057318038,0.05250821,56972.0,56963.0,0.0805]
[1726057318517,0.05250821,56972.0,56964.0,0.0633]
[1726057318746,0.07876232,56973.0,56964.0,0.0633]
[1726057318747,0.05250821,56971.0,56965.0,0.0805]
[1726057319702,0.05250821,56970.0,56965.0,0.0805]
[1726057320598,0.05250821,56969.0,56965.0,0.0805]
[1726057320833,0.05450821,56971.0,56968.0,0.28816626]
[1726057321063,0.05250821,56977.0,56972.0,0.1427]
[1726057321488,0.07641121,56977.0,56972.0,0.1427]
[1726057321706,0.05258679,56978.0,56972.0,0.1427]
[1726057322406,0.05258679,56978.0,56972.0,0.1437]
[1726057323099,0.007,56977.0,56972.0,0.1447]
[1726057323546,0.05258679,56978.0,56972.0,0.1437]
[1726057323759,0.05258679,56978.0,56973.0,0.0809]
[1726057323985,0.05958679,56978.0,56974.0,0.0637]
[1726057324200,0.01577604,56977.0,56974.0,0.0637]
[1726057324409,0.007,56978.0,56975.0,0.26035008]
[1726057324623,0.007,56978.0,56976.0,0.1446]
[1726057324829,0.007,56978.0,56977.0,0.32054018]
[1726057325920,0.0024756,56992.0,56978.0,0.1446]
[1726057326147,0.05558748,56992.0,56979.0,0.17594018]
[1726057326350,0.05558748,56992.0,56981.0,0.0818]
[1726057326569,0.05558748,56992.0,56982.0,0.17594018]
[1726057326831,0.38438204,56992.0,56981.0,0.0818]
[1726057327048,0.20796626,56988.0,56981.0,0.0818]
[1726057327255,0.002,56987.0,56981.0,0.0818]
[1726057327812,0.002,56986.0,56981.0,0.0818]
[1726057328025,0.002,56986.0,56982.0,0.001]
[1726057328249,0.05593794,56985.0,56979.0,0.001]
[1726057328479,0.002,56983.0,56979.0,0.001]
[1726057328706,0.17794018,56983.0,56981.0,0.001]
[1726057328947,0.20796626,56981.0,56979.0,0.001]
[1726057329221,0.77553082,56980.0,56979.0,0.001]
[1726057329443,0.42653082,56980.0,56979.0,0.001]
[1726057329669,0.002,56977.0,56972.0,0.001636]
[1726057329892,0.17594018,56976.0,56972.0,0.001636]
[1726057330346,0.24266626,56985.0,56972.0,0.001636]
[1726057330583,0.002,56983.0,56972.0,0.001636]
[1726057330821,0.17594018,56982.0,56972.0,0.001636]
[1726057331041,0.006,56977.0,56973.0,0.0819]
[1726057331485,0.17594018,56982.0,56973.0,0.0819]
[1726057331739,0.03463371,56981.0,56973.0,0.0819]
[1726057331958,0.21057389,56981.0,56973.0,0.0819]
[1726057332591,0.21057389,56981.0,56973.0,0.0829]
[1726057333479,0.006,56977.0,56973.0,0.0839]
[1726057333969,0.21057389,56981.0,56973.0,0.0829]
[1726057334218,0.10520288,56974.0,56973.0,0.0829]
[1726057334474,0.10520288,56974.0,56973.0,0.0839]
[1726057334685,0.10520288,56974.0,56973.0,0.0819]
[1726057334912,0.10520288,56974.0,56973.0,0.0829]
[1726057335142,0.10520288,56974.0,56973.0,0.0839]
[1726057335345,0.10520288,56974.0,56973.0,0.0829]
[1726057335562,0.10520288,56974.0,56973.0,0.0839]
[1726057335814,0.14736267,56974.0,56973.0,0.0839]
[1726057336276,0.10520288,56974.0,56973.0,0.0839]
[1726057336792,0.10520288,56974.0,56973.0,0.0829]
[1726057337031,0.11120288,56974.0,56973.0,0.0839]
[1726057337269,0.11120288,56974.0,56973.0,0.1492]
[1726057337511,0.11120288,56974.0,56973.0,0.0839]
[1726057339137,0.0848919,56974.0,56973.0,0.0839]
[1726057339826,0.05859385,56974.0,56973.0,0.1447]
[1726057340052,0.006,56974.0,56973.0,0.1447]
[1726057340294,0.05859385,56974.0,56973.0,0.1447]
[1726057340575,0.07810078,56974.0,56973.0,0.1447]
[1726057341503,0.05859385,56974.0,56973.0,0.1447]
[1726057341729,0.006,56974.0,56973.0,0.1447]
[1726057344089,0.05859385,56974.0,56973.0,0.1447]
[1726057344803,0.0848919,56974.0,56973.0,0.1447]
[1726057345011,0.006,56974.0,56973.0,0.1447]
[1726057345247,0.18261741,56974.0,56973.0,0.1447]
[1726057345964,0.28182029,56974.0,56973.0,0.1427]
[1726057346182,0.14661707,56974.0,56973.0,0.1427]
[1726057346422,0.15161707,56974.0,56973.0,0.1447]
[1726057346892,0.49917466,56974.0,56973.0,0.001]
[1726057347139,1.13349304,56974.0,56973.0,0.001]
[1726057347396,1.56815629,56974.0,56973.0,0.001]
[1726057347616,0.88379697,56974.0,56973.0,0.001]
[1726057348087,0.002,56973.0,56972.0,0.001636]
[1726057348348,0.8749117,56973.0,56972.0,0.001636]
[1726057348577,1.27931677,56973.0,56972.0,0.001636]
[1726057348819,2.0365087,56973.0,56972.0,0.00010087]
[1726057349066,1.59489792,56973.0,56972.0,0.00010087]
[1726057349293,1.21558603,56973.0,56972.0,0.00010087]
[1726057349790,0.76723529,56973.0,56972.0,0.00110087]
[1726057350020,0.57057967,56973.0,56972.0,0.00010087]
[1726057350241,0.42281267,56973.0,56972.0,0.00110087]
[1726057350688,0.41281267,56973.0,56972.0,0.00010087]
[1726057350912,0.33038385,56973.0,56972.0,0.07820087]
[1726057351135,0.23687249,56973.0,56972.0,0.07820087]
[1726057351355,0.23687249,56973.0,56972.0,0.07920087]
[1726057351356,0.25087249,56973.0,56972.0,0.07920087]
[1726057351592,0.19573044,56973.0,56972.0,0.07920087]
[1726057352119,0.26485665,56973.0,56972.0,0.08020087]
[1726057352354,0.19573044,56973.0,56972.0,0.07920087]
[1726057352556,0.42262449,56973.0,56972.0,0.08020087]
[1726057352780,0.40862449,56973.0,56972.0,0.07920087]
[1726057353038,0.33949744,56973.0,56972.0,0.07820087]
[1726057353257,0.21584378,56973.0,56972.0,0.14120087]
[1726057353485,0.23984378,56973.0,56972.0,0.14220087]
[1726057353954,0.17974334,56973.0,56972.0,0.14120087]
[1726057354165,0.33536044,56973.0,56972.0,0.14220087]
[1726057354599,0.32736044,56973.0,56972.0,0.14120087]
[1726057355043,0.32936044,56973.0,56972.0,0.14120087]
[1726057355266,0.18373044,56973.0,56972.0,0.14120087]
[1726057355491,0.03369964,56973.0,56972.0,0.14120087]
[1726057355715,0.011,56973.0,56972.0,0.14220087]
[1726057355974,0.002,56973.0,56972.0,0.14120087]
[1726057356191,0.004,56973.0,56972.0,0.14120087]
[1726057356647,0.19256776,56973.0,56972.0,0.14120087]
[1726057356872,0.32419776,56973.0,56972.0,0.14120087]
[1726057357328,0.35678114,56973.0,56972.0,0.14120087]
[1726057357584,0.22515114,56973.0,56972.0,0.14120087]
[1726057358911,0.19256776,56973.0,56972.0,0.14100087]
[1726057359117,0.19256776,56973.0,56972.0,0.15100087]
[1726057359576,0.29783236,56973.0,56972.0,0.15100087]
[1726057361398,0.29791366,56973.0,56972.0,0.15100087]
[1726057361853,0.004,56973.0,56972.0,0.15100087]
[1726057363227,0.297936,56973.0,56972.0,0.15100087]
[1726057364388,0.297936,56973.0,56972.0,0.15263687]
[1726057364835,0.298754,56973.0,56972.0,0.15263687]
[1726057366567,0.298754,56973.0,56972.0,0.32857705]
[1726057366568,0.004818,56973.0,56972.0,0.32857705]
[1726057367444,0.002818,56973.0,56972.0,0.32857705]
[1726057367889,0.000818,56973.0,56972.0,0.32857705]
[1726057367893,0.001818,56973.0,56972.0,0.33457705]
[1726057368110,0.002818,56973.0,56972.0,0.34057705]
[1726057371860,0.002818,56973.0,56972.0,0.16463687]
[1726057374099,0.002818,56973.0,56972.0,0.34057705]
[1726057375714,0.002818,56973.0,56972.0,0.023636]
[1726057376149,0.05540525,56973.0,56972.0,0.023636]
[1726057376582,0.04007448,56973.0,56972.0,0.023636]
[1726057376803,0.09266173,56973.0,56972.0,0.023636]
[1726057377016,0.04007448,56973.0,56972.0,0.023636]
[1726057377234,0.09266618,56973.0,56972.0,0.023636]
[1726057377456,0.0554097,56973.0,56972.0,0.023636]
[1726057377908,0.002818,56973.0,56972.0,0.023636]
[1726057378136,0.0554097,56973.0,56972.0,0.023636]
[1726057378373,0.08169888,56973.0,56972.0,0.023636]
[1726057378583,0.11369663,56973.0,56972.0,0.023636]
[1726057378810,0.08741144,56973.0,56972.0,0.023636]
[1726057379026,0.11369663,56973.0,56972.0,0.023636]
[1726057380159,0.6798419,56973.0,56972.0,0.023636]
[1726057380377,1.48524886,56973.0,56972.0,0.013636]
[1726057380617,0.95868486,56973.0,56972.0,0.013636]
[1726057381074,1.13320586,56973.0,56972.0,0.007636]
[1726057381289,0.95768486,56973.0,56972.0,0.007636]
[1726057381507,1.13920586,56973.0,56972.0,0.002636]
[1726057381722,1.14920586,56973.0,56972.0,0.003636]
[1726057381941,1.15114162,56973.0,56972.0,0.002636]
[1726057382172,0.76765436,56973.0,56972.0,0.002636]
[1726057382422,0.95434161,56973.0,56972.0,0.003636]
[1726057382649,0.95434161,56973.0,56972.0,0.002636]
[1726057382650,0.93534161,56973.0,56972.0,0.002636]
[1726057382897,0.92834161,56973.0,56972.0,0.001636]
[1726057383119,1.29338461,56973.0,56972.0,0.002636]
[1726057383394,1.28938461,56973.0,56972.0,0.002636]
[1726057383836,1.63242761,56973.0,56972.0,0.001636]
[1726057384051,1.27938461,56973.0,56972.0,0.001636]
[1726057384268,1.28138461,56973.0,56972.0,0.001636]
[1726057384491,1.64442761,56973.0,56972.0,0.002636]
[1726057384745,1.64442761,56973.0,56972.0,0.00106308]
[1726057384746,2.31400301,56973.0,56972.0,0.00106308]
[1726057385009,1.94996001,56973.0,56972.0,6.308e-05]
[1726057385243,1.42138461,56973.0,56972.0,6.308e-05]
[1726057385468,1.08434161,56973.0,56972.0,0.00106308]
[1726057385684,0.52895655,56973.0,56972.0,0.00106308]
[1726057386125,0.27120909,56973.0,56972.0,0.00106308]
[1726057387466,0.82863653,56973.0,56972.0,0.00106308]
[1726057387680,1.09387725,56973.0,56972.0,0.00106308]
[1726057387892,1.2700468,56973.0,56972.0,0.00106308]
[1726057388567,1.6557898,56973.0,56972.0,0.00106308]
[1726057388783,2.0088328,56973.0,56972.0,0.00106308]
[1726057391001,2.0088328,56973.0,56972.0,0.00269908]
[1726057391689,2.01936449,56973.0,56972.0,0.00269908]
[1726057392891,1.81139823,56973.0,56972.0,0.00269908]
[1726057393118,2.01736449,56973.0,56972.0,0.00269908]
[1726057393343,2.00815039,56973.0,56972.0,0.00269908]
[1726057394711,2.00815039,56973.0,56972.0,7.081e-05]
[1726057395685,2.54919339,56973.0,56972.0,7.081e-05]
[1726057395933,1.47157526,56961.0,56960.0,0.001636]
[1726057396181,2.15646484,56961.0,56960.0,0.001636]
[1726057396621,2.42382599,56961.0,56960.0,0.001636]
[1726057396882,2.42382599,56961.0,56952.0,0.0041096]
[1726057396883,0.50824926,56953.0,56952.0,0.0041096]
[1726057397100,1.68837512,56953.0,56952.0,0.0041096]
[1726057397326,2.24988795,56953.0,56952.0,0.0041096]
[1726057397560,2.43898177,56953.0,56952.0,0.0041096]
[1726057398000,2.62418177,56953.0,56952.0,0.0041096]
[1726057398215,2.45098177,56953.0,56952.0,0.0051096]
[1726057398435,2.45098177,56953.0,56932.0,0.0804]
[1726057398436,1.321126,56951.0,56932.0,0.0804]
[1726057398621,2.12901558,56951.0,56932.0,0.0804]
[1726057400243,1.17598826,56946.0,56932.0,0.0804]
[1726057400461,1.67211865,56946.0,56932.0,0.0804]
[1726057400682,1.74583676,56946.0,56932.0,0.0804]
[1726057400901,1.92200631,56946.0,56932.0,0.0804]
[1726057401569,1.62809799,56946.0,56932.0,0.0804]
[1726057401796,1.64209799,56946.0,56932.0,0.0804]
[1726057402015,1.72066397,56946.0,56932.0,0.0804]
[1726057402228,2.07187297,56946.0,56932.0,0.0804]
[1726057402461,2.12057297,56946.0,56932.0,0.0804]
[1726057402716,2.04200699,56946.0,56932.0,0.0804]
[1726057403173,0.95367999,56946.0,56932.0,0.0804]
[1726057403391,0.95167999,56946.0,56932.0,0.0804]
[1726057403604,1.30288899,56946.0,56932.0,0.0804]
[1726057403822,1.12671944,56946.0,56932.0,0.0804]
[1726057404069,1.12871944,56946.0,56932.0,0.0804]
[1726057404507,1.47992844,56946.0,56932.0,0.0804]
[1726057405398,1.47992844,56946.0,56938.0,0.0803]
[1726057405613,1.12871944,56946.0,56938.0,0.0803]
[1726057405836,1.63315451,56946.0,56938.0,0.0803]
[1726057406389,0.940085,56942.0,56932.0,0.0786]
[1726057406614,1.35199144,56942.0,56932.0,0.0786]
[1726057406871,1.21602518,56942.0,56932.0,0.0786]
[1726057407091,1.62816099,56942.0,56932.0,0.0786]
[1726057408033,1.64216099,56942.0,56932.0,0.0786]
[1726057408262,1.65616099,56942.0,56932.0,0.0786]
[1726057408477,1.24492699,56942.0,56932.0,0.0786]
[1726057408697,0.53990644,56942.0,56932.0,0.0786]
[1726057409609,0.53990644,56942.0,56941.0,0.1480756]
[1726057409610,0.50990644,56942.0,56941.0,0.1480756]
[1726057410733,0.53990644,56942.0,56941.0,0.1480756]
[1726057412320,0.54190644,56942.0,56941.0,0.0844756]
[1726057412565,0.54190644,56942.0,56941.0,0.0024756]
[1726057412789,0.60009708,56942.0,56941.0,0.0024756]
[1726057414203,0.60209708,56942.0,56941.0,0.0024756]
[1726057414429,0.60009708,56942.0,56941.0,0.0041116]
[1726057414673,0.63479708,56942.0,56941.0,0.0041116]
[1726057415133,0.81041408,56942.0,56941.0,0.0041116]
[1726057415377,0.60009708,56942.0,56941.0,0.0041116]
[1726057415615,0.77771408,56942.0,56941.0,0.0041116]
[1726057416321,0.77771408,56942.0,56941.0,0.00018225]
[1726057416540,1.12894808,56942.0,56941.0,0.00018225]
[1726057416764,0.77771408,56942.0,56941.0,0.00018225]
[1726057417196,1.15894808,56942.0,56941.0,0.00018225]
[1726057418069,1.18694808,56942.0,56941.0,0.00018225]
[1726057418285,1.18894808,56942.0,56941.0,0.00018225]
[1726057418755,1.15894808,56942.0,56941.0,0.00018225]
[1726057418968,1.54018208,56942.0,56941.0,0.00018225]
[1726057419225,1.18894808,56942.0,56941.0,0.00018225]
[1726057419897,1.15894808,56942.0,56941.0,0.00018225]
[1726057420157,1.18894808,56942.0,56941.0,0.00018225]
[1726057420607,1.15894808,56942.0,56941.0,0.00018225]
[1726057420847,1.12894808,56942.0,56941.0,0.00018225]
[1726057421065,1.18894808,56942.0,56941.0,0.00018225]
[1726057421263,1.15894808,56942.0,56941.0,0.00018225]
[1726057421526,1.18894808,56942.0,56941.0,0.00018225]
[1726057422005,1.15694808,56942.0,56941.0,0.00018225]
[1726057422236,1.15894808,56942.0,56941.0,0.00018225]
[1726057422487,1.18894808,56942.0,56941.0,0.00018225]
[1726057423416,0.66209708,56942.0,56941.0,0.00018225]
[1726057424493,0.71434516,56942.0,56941.0,0.00018225]
[1726057424713,0.76944752,56942.0,56941.0,0.00018225]
[1726057425379,0.79557156,56942.0,56941.0,0.00018225]
[1726057426308,0.79557156,56942.0,56941.0,8.07e-06]
[1726057426786,0.71719944,56942.0,56941.0,8.07e-06]
[1726057427900,1.0060823,56942.0,56941.0,8.07e-06]
[1726057428848,1.0062033,56942.0,56941.0,8.07e-06]
[1726057429609,0.90158614,56942.0,56941.0,8.07e-06]
[1726057430534,1.0326017,56942.0,56941.0,8.07e-06]
[1726057431660,0.90179057,56942.0,56941.0,8.07e-06]
[1726057432811,0.738616,56942.0,56941.0,0.14350807]
[1726057433294,0.4978445,56942.0,56941.0,0.14350807]
[1726057433514,0.5278445,56942.0,56941.0,0.14350807]
[1726057433731,0.72531286,56942.0,56941.0,0.14350807]
[1726057433961,0.73931286,56942.0,56941.0,0.14350807]
[1726057434187,0.72531286,56942.0,56941.0,0.14350807]
[1726057434664,0.76350635,56942.0,56941.0,0.14350807]
[1726057434868,0.75150635,56942.0,56941.0,0.14350807]
[1726057435524,0.62052117,56942.0,56941.0,0.14350807]
[1726057435742,0.63452117,56942.0,56941.0,0.14350807]
[1726057435995,0.62052117,56942.0,56941.0,0.14350807]
[1726057436228,0.60652117,56942.0,56941.0,0.14350807]
[1726057436704,0.62052117,56942.0,56941.0,0.14350807]
[1726057438041,0.63452117,56942.0,56941.0,0.14350807]
[1726057438500,0.79149453,56942.0,56941.0,0.14350807]
[1726057438722,0.85619453,56942.0,56941.0,8.07e-06]
[1726057438963,0.092,56936.0,56930.0,0.0046365]
[1726057439213,1.26420279,56936.0,56930.0,0.0046365]
[1726057439441,1.9749164,56936.0,56930.0,0.0046365]
[1726057440420,1.9879164,56936.0,56930.0,0.0046365]
[1726057440638,2.0226164,56936.0,56930.0,0.0046365]
[1726057440858,2.92087676,56936.0,56930.0,0.0046365]
[1726057441095,2.95770653,56936.0,56930.0,0.0046365]
[1726057441317,2.60643553,56936.0,56930.0,0.0046365]
[1726057441528,2.59343553,56936.0,56930.0,0.0046365]
[1726057441743,2.60743553,56936.0,56930.0,0.0046365]
[1726057441976,2.62143553,56936.0,56930.0,0.0046365]
[1726057442456,2.60743553,56936.0,56930.0,0.0046365]
[1726057442956,2.60743553,56936.0,56919.0,0.001636]
[1726057442957,0.2074268,56920.0,56919.0,0.001636]
[1726057443203,1.59246359,56920.0,56919.0,0.001636]
[1726057443432,2.3032762,56920.0,56919.0,0.001636]
[1726057443657,2.32436405,56920.0,56919.0,0.001636]
[1726057443937,2.35906405,56920.0,56919.0,0.001636]
[1726057444166,2.5352336,56920.0,56919.0,0.001636]
[1726057444859,2.54637452,56920.0,56919.0,0.001636]
[1726057445082,1.87924326,56916.0,56915.0,0.001634]
[1726057445309,2.65310425,56916.0,56915.0,0.001634]
[1726057445538,3.21858813,56916.0,56915.0,0.001634]
[1726057445755,3.25328813,56916.0,56915.0,0.001634]
[1726057446007,3.31733005,56916.0,56915.0,0.001634]
[1726057446469,3.33133005,56916.0,56915.0,0.001634]
[1726057446707,3.33133005,56916.0,56907.0,0.0046365]
[1726057446708,1.56272026,56908.0,56907.0,0.0046365]
[1726057446943,1.56295826,56897.0,56896.0,0.0024756]
[1726057447194,0.265765,56894.0,56885.0,0.0759]
[1726057447434,1.03284523,56894.0,56885.0,0.0759]
[1726057447674,1.6647594,56894.0,56885.0,0.0759]
[1726057447909,1.76270491,56894.0,56885.0,0.0759]
[1726057448147,2.29040446,56894.0,56885.0,0.0759]
[1726057448387,2.04871141,56894.0,56885.0,0.0780609]
[1726057448858,0.617425,56880.0,56879.0,0.0032568]
[1726057449093,2.02001554,56880.0,56879.0,0.0032568]
[1726057449328,2.1166749,56880.0,56879.0,0.0032568]
[1726057449559,2.3189949,56880.0,56879.0,0.0032568]
[1726057449780,2.53985968,56880.0,56879.0,0.0032568]
[1726057450002,0.971057,56879.0,56865.0,0.0788]
[1726057450281,0.20596626,56866.0,56861.0,0.0059533]
[1726057450504,0.411693,56868.0,56861.0,0.0059533]
[1726057450505,1.35322644,56862.0,56861.0,0.0059533]
[1726057450744,1.70495444,56862.0,56861.0,0.0059533]
[1726057450982,1.82795444,56862.0,56861.0,0.0059533]
[1726057451200,1.12449844,56862.0,56861.0,0.0059533]
[1726057451668,0.78422102,56862.0,56861.0,0.0059533]
[1726057451891,1.22837112,56862.0,56861.0,0.0059533]
[1726057452108,1.21437112,56862.0,56861.0,0.0059533]
[1726057452327,1.58009912,56862.0,56861.0,0.0059533]
[1726057452780,1.56609912,56862.0,56861.0,0.0059533]
[1726057452996,1.56609912,56862.0,56839.0,0.0021609]
[1726057452997,0.557749,56845.0,56839.0,0.0021609]
[1726057453206,1.02265544,56845.0,56839.0,0.0021609]
[1726057453442,1.47648844,56845.0,56839.0,0.0021609]
[1726057453866,1.82832144,56845.0,56839.0,0.0021609]
[1726057454113,1.322524,56840.0,56839.0,0.0021609]
[1726057454335,1.322524,56840.0,56827.0,0.0037924]
[1726057454336,0.265966,56829.0,56827.0,0.0037924]
[1726057454554,0.91683818,56829.0,56827.0,0.0037924]
[1726057454975,1.62070218,56829.0,56827.0,0.0037924]
[1726057455190,0.9716668,56823.0,56822.0,0.001638]
[1726057455444,0.9716668,56823.0,56800.0,0.53725058]
[1726057455445,0.091,56814.0,56813.0,0.43512102]
[1726057455659,0.17594018,56814.0,56813.0,0.43512102]
[1726057455884,0.3025342,56814.0,56813.0,0.49972102]
[1726057456101,0.30594018,56814.0,56813.0,0.58192102]
[1726057456561,0.27594018,56814.0,56813.0,0.58192102]
[1726057456836,0.31994018,56814.0,56813.0,0.58192102]
[1726057457471,0.40294018,56814.0,56813.0,0.58192102]
[1726057457678,0.37958381,56814.0,56813.0,0.58192102]
[1726057457898,0.44524827,56814.0,56813.0,0.58192102]
[1726057458588,0.45924827,56814.0,56813.0,0.58192102]
[1726057458793,0.41524827,56814.0,56813.0,0.58192102]